bitfinex-derivatives/quotes_ETHF0:USTF0_20250417
["timestamp","ask_amount","ask_price","bid_price","bid_amount"]
[1744895887640,1.25584,1593.0,1592.9,3.2078]
[1744895887840,2.94404,1593.0,1592.9,3.2078]
[1744895888047,2.94404,1593.0,1592.9,6.09422]
[1744895888447,2.94404,1593.0,1592.9,4.8383]
[1744895889646,1.25584,1593.0,1592.9,6.09422]
[1744895890655,2.97534,1593.0,1592.9,6.09422]
[1744895890854,2.97534,1593.0,1592.9,4.8383]
[1744895891156,2.97534,1593.0,1592.9,3.2078]
[1744895891650,2.97534,1593.0,1592.9,6.14492]
[1744895893159,2.97534,1593.0,1592.9,4.889]
[1744895893859,2.97534,1593.0,1592.9,1.6812]
[1744895896358,1.25584,1593.0,1592.9,2.93712]
[1744895896548,5.4498,1593.1,1593.0,1.25584]
[1744895896752,5.4498,1593.1,1593.0,3.00434]
[1744895897450,1.25584,1593.0,1592.9,1.25586]
[1744895897650,1.25592,1592.9,1592.8,8.22184]
[1744895898562,4.0453,1593.0,1592.9,1.25592]
[1744895898858,4.0453,1593.0,1592.9,1.6745]
[1744895899061,4.0453,1593.0,1592.9,2.93042]
[1744895899765,4.0453,1593.0,1592.9,1.6745]
[1744895900259,1.25592,1592.9,1592.8,6.54735]
[1744895900464,2.94522,1592.9,1592.8,1.0289]
[1744895900664,1.256,1592.8,1592.7,1.7359]
[1744895900965,2.9453,1592.8,1592.7,1.7359]
[1744895901161,3.2078,1593.0,1592.8,1.256]
[1744895901362,1.25592,1593.0,1592.9,4.00572]
[1744895901564,1.25592,1593.0,1592.9,5.04662]
[1744895901862,1.25592,1593.0,1592.9,3.7907]
[1744895902156,2.94522,1593.0,1592.9,5.04662]
[1744895902362,2.94522,1593.0,1592.9,2.0548]
[1744895902562,2.94522,1593.0,1592.9,3.31072]
[1744895902860,2.94522,1593.0,1592.9,5.04662]
[1744895903163,2.94522,1593.0,1592.9,3.7907]
[1744895904062,4.96772,1593.0,1592.9,3.7907]
[1744895904866,1.25592,1592.9,1592.8,4.46376]
[1744895905167,3.02272,1592.9,1592.8,4.46376]
[1744895905366,1.25592,1592.9,1592.8,6.07536]
[1744895906168,3.02272,1592.9,1592.8,6.07536]
[1744895906363,1.25639,1592.4,1592.3,3.2078]
[1744895906565,1.25639,1592.3,1592.2,12.56239453]
[1744895906869,1.6398,1592.3,1592.2,12.56239453]
[1744895907064,2.89619,1592.3,1592.2,14.15749453]
[1744895907369,2.0727,1592.5,1592.4,1.25631]
[1744895907662,1.25604,1592.8,1592.6,1.25613]
[1744895907868,1.25604,1592.8,1592.3,2.6383]
[1744895907869,2.89584,1592.8,1592.7,1.5951]
[1744895908071,1.25622,1592.6,1592.4,1.0591]
[1744895908263,1.25622,1592.6,1592.5,1.5951]
[1744895908463,2.89593,1592.7,1592.5,2.85133]
[1744895909271,2.89593,1592.7,1592.6,2.6383]
[1744895909568,1.6398,1592.7,1592.6,3.89445]
[1744895909764,1.25608,1592.7,1592.6,2.6383]
[1744895910071,1.25623,1592.5,1592.4,1.0591]
[1744895910371,1.25623,1592.5,1592.4,2.0573]
[1744895910878,2.94783,1592.5,1592.4,2.0573]
[1744895912282,2.94783,1592.5,1592.4,1.0591]
[1744895913082,1.25647,1592.3,1592.0,8.64736]
[1744895913377,1.25644,1592.3,1592.1,3.6109]
[1744895913578,1.25647,1592.2,1592.1,3.6109]
[1744895913778,2.91157,1592.2,1592.1,3.6109]
[1744895914576,1.25657,1592.1,1591.9,13.81903453]
[1744895914775,1.6551,1592.1,1592.0,3.6109]
[1744895914974,2.91165,1592.1,1592.0,3.6109]
[1744895916183,4.46432,1592.2,1592.0,4.86753]
[1744895916480,4.46432,1592.2,1592.1,1.6153]
[1744895916674,1.25655,1592.1,1592.0,1.9734]
[1744895916882,2.90745,1592.1,1592.0,1.9734]
[1744895917074,1.6509,1592.1,1592.0,3.23003]
[1744895917275,4.46433,1592.2,1592.0,3.23003]
[1744895917479,4.46433,1592.2,1592.1,1.6153]
[1744895917983,6.11523,1592.2,1592.1,1.6153]
[1744895918384,6.11517,1592.2,1592.1,1.6153]
[1744895919583,3.2078,1592.2,1592.1,2.87185]
[1744895920283,4.46427,1592.2,1592.1,1.6153]
[1744895920582,3.2078,1592.2,1592.1,2.87185]
[1744895922078,4.46427,1592.2,1592.1,2.87185]
[1744895922279,6.09107,1592.2,1592.1,2.87185]
[1744895922984,4.8346,1592.2,1592.1,2.87185]
[1744895923488,3.2078,1592.2,1592.1,2.87185]
[1744895925585,4.46427,1592.2,1592.1,2.87185]
[1744895926083,3.2078,1592.2,1592.1,2.87185]
[1744895927186,0.00940763,1592.3,1592.2,1.25647]
[1744895927384,0.00940763,1592.3,1592.2,2.95077]
[1744895928980,0.00940763,1592.3,1592.2,7.95077]
[1744895929187,7.49958814,1592.8,1592.7,1.25608]
[1744895929486,10.28718814,1592.8,1592.7,1.25608]
[1744895930386,2.66015,1592.8,1592.7,1.25608]
[1744895930890,1.25608,1592.7,1592.6,4.91650763]
[1744895931091,1.25608,1592.7,1592.6,1.26550763]
[1744895931989,1.25608,1592.7,1592.6,0.00940763]
[1744895932191,1.25608,1592.7,1592.6,1.26555763]
[1744895934391,1.7395,1592.7,1592.6,1.26555763]
[1744895934694,1.7395,1592.7,1592.6,2.98885763]
[1744895934893,3.21720763,1592.9,1592.8,1.256]
[1744895935387,3.21720763,1592.9,1592.8,3.9549]
[1744895935583,0.00940763,1592.9,1592.8,3.9549]
[1744895935794,0.00940763,1592.9,1592.8,8.9549]
[1744895935998,0.00940763,1592.9,1592.8,13.1849]
[1744895937399,7.63e-06,1592.9,1592.8,13.1849]
[1744895938093,3.2078,1593.4,1593.3,1.2556]
[1744895938293,1.6936,1593.5,1593.4,1.25552]
[1744895939191,1.6936,1593.5,1593.4,2.85402]
[1744895939490,1.6936,1593.5,1593.4,1.25552]
[1744895939894,1.6936,1593.5,1593.4,2.90482]
[1744895940500,6.25294577,1593.6,1593.5,1.25545]
[1744895940793,8.01604577,1593.6,1593.5,1.25545]
[1744895941293,6.25294577,1593.6,1593.5,1.25545]
[1744895941497,6.25294577,1593.6,1593.5,4.46325]
[1744895941802,0.00940763,1593.6,1593.5,6.11255]
[1744895942298,4.1914,1594.0,1593.9,1.25513]
[1744895942597,6.24353814,1594.1,1594.0,1.25505]
[1744895942792,6.24353814,1594.1,1594.0,5.51705]
[1744895943197,6.24353814,1594.1,1594.0,14.74505]
[1744895943696,8.33412515,1594.2,1594.1,1.25497]
[1744895943895,8.33412515,1594.2,1594.1,3.98577]
[1744895946104,0.00940763,1594.2,1594.1,3.98577]
[1744895947804,0.00940763,1594.2,1594.1,2.99297]
[1744895949301,0.00940763,1594.2,1594.1,1.25497]
[1744895949809,4.47209763,1594.2,1594.1,1.25497]
[1744895950103,6.17669763,1594.2,1594.1,1.25497]
[1744895950607,1.71400763,1594.2,1594.1,1.25497]
[1744895951205,1.0124,1594.5,1594.4,1.25474]
[1744895951705,2.717,1594.5,1594.4,1.25474]
[1744895952605,1.25489,1594.3,1594.2,1.25489]
[1744895952903,4.46268,1594.3,1594.2,1.25489]
[1744895953108,6.9491,1594.4,1594.3,1.25482]
[1744895953306,6.45404,1594.4,1594.3,1.25482]
[1744895953498,2.22804,1594.4,1594.3,1.25482]
[1744895953708,0.9733,1594.4,1594.3,1.25482]
[1744895954109,4.2202,1594.5,1594.4,1.25474]
[1744895954506,3.2078,1594.5,1594.4,1.25474]
[1744895955112,3.2078,1594.5,1594.4,2.89574]
[1744895955813,0.00940763,1594.6,1594.5,1.25466]
[1744895956007,0.00940763,1594.6,1594.5,2.95916]
[1744895956214,3.2078,1594.9,1594.8,1.25442]
[1744895957510,0.00940763,1595.0,1594.9,1.25434]
[1744895957710,0.00940763,1595.0,1594.9,2.27984]
[1744895958212,0.00940763,1595.0,1594.9,1.25434]
[1744895958810,0.00940763,1595.0,1594.8,1.26376763]
[1744895959113,0.00940763,1595.0,1594.8,0.00940763]
[1744895959114,1.25434,1594.9,1594.8,0.00940763]
[1744895960114,9.46214,1594.9,1594.8,0.00940763]
[1744895960316,4.46214,1594.9,1594.8,0.00940763]
[1744895961610,1.25434,1594.9,1594.8,1.26382763]
[1744895962116,1.25434,1594.9,1594.8,0.00940763]
[1744895962613,4.46214,1594.9,1594.8,1.26382763]
[1744895963307,4.46214,1594.9,1594.8,0.00940763]
[1744895964614,4.46214,1594.9,1594.8,1.26382763]
[1744895965418,4.46214,1594.9,1594.8,0.00940763]
[1744895966408,4.46214,1594.9,1594.8,1.26382763]
[1744895966613,4.46214,1594.9,1594.8,0.00940763]
[1744895969119,6.21024,1594.9,1594.8,0.00940763]
[1744895969518,12.20024,1594.9,1594.8,0.00940763]
[1744895971519,9.1978,1594.9,1594.8,1.26382763]
[1744895971821,9.1978,1594.9,1594.8,3.86422763]
[1744895973016,10.45214,1594.9,1594.8,3.86422763]
[1744895973215,12.18564,1594.9,1594.8,2.22692763]
[1744895973422,12.18564,1594.9,1594.8,0.00940763]
[1744895975524,6.19564,1594.9,1594.8,0.00940763]
[1744895976125,6.19564,1594.9,1594.8,1.26382763]
[1744895977030,6.19564,1594.9,1594.8,3.02222763]
[1744895978133,4.9413,1594.9,1594.8,3.02222763]
[1744895978537,6.19564,1594.9,1594.8,3.02222763]
[1744895979128,4.9413,1594.9,1594.8,3.02222763]
[1744895980736,3.2078,1594.9,1594.8,3.02222763]
[1744895981137,4.883,1594.9,1594.8,3.02222763]
[1744895982837,0.00940763,1595.0,1594.8,3.02222763]
[1744895983037,0.00940763,1595.0,1594.9,4.77634]
[1744895984036,1.26366763,1595.0,1594.9,4.77634]
[1744895984242,0.00940763,1595.0,1594.9,4.77634]
[1744895984540,1.71090763,1595.0,1594.9,4.77634]
[1744895987647,0.00940763,1595.0,1594.9,4.77634]
[1744895993140,1.73980763,1595.0,1594.9,3.08304]
[1744895993446,2.99406763,1595.0,1594.9,1.25434]
[1744895993649,1.25434,1594.9,1594.8,2.90536763]
[1744895993943,2.6663,1594.9,1594.8,2.90536763]
[1744895994348,3.92064,1594.9,1594.8,2.90536763]
[1744895994553,2.6663,1594.9,1594.8,2.90536763]
[1744895995240,1.7304,1594.9,1594.8,2.90536763]
[1744895995446,0.00940763,1595.0,1594.9,1.25434]
[1744895995646,0.00940763,1595.0,1594.9,4.89234]
[1744895999554,1.69210763,1595.0,1594.9,4.89234]
[1744896003257,0.00940763,1595.0,1594.9,4.89234]
[1744896005355,1.26366763,1595.0,1594.9,2.22794]
[1744896005558,2.87506763,1595.0,1594.9,1.25434]
[1744896005759,3.87016763,1595.0,1594.9,1.25434]
[1744896006458,0.00940763,1595.0,1594.9,1.25434]
[1744896006659,0.00940763,1595.0,1594.9,2.88804]
[1744896015774,3.2078,1595.1,1595.0,1.25426]
[1744896015964,3.2078,1595.1,1595.0,3.79226]
[1744896018570,4.8451,1595.1,1595.0,3.79226]
[1744896020473,6.09932,1595.1,1595.0,1.25426]
[1744896020671,7.02822,1595.1,1595.0,1.25426]
[1744896021574,3.2078,1595.1,1595.0,1.25426]
[1744896021875,3.2078,1595.1,1595.0,2.94056]
[1744896029177,4.8727,1595.1,1595.0,2.94056]
[1744896030371,6.12689,1595.1,1595.0,1.25426]
[1744896030577,1.25434,1594.9,1594.8,1.26380763]
[1744896030976,2.91924,1594.9,1594.8,1.26380763]
[1744896032488,17.11704,1594.9,1594.8,0.00940763]
[1744896032679,21.31404,1594.9,1594.8,0.00940763]
[1744896033987,62.11404,1594.9,1594.8,0.00940763]
[1744896035191,1.2545,1594.7,1594.6,1.25458]
[1744896035490,4.4623,1594.7,1594.6,1.25458]
[1744896035977,7.1273,1594.7,1594.6,1.25458]
[1744896037189,1.25458,1594.6,1594.5,1.26405763]
[1744896037391,2.97848,1594.6,1594.5,0.00940763]
[1744896038693,1.25497,1594.1,1594.0,14.9527189]
[1744896039083,1.25497,1594.1,1594.0,11.7449189]
[1744896039290,1.25497,1594.1,1594.0,12.9999689]
[1744896039493,2.97887,1594.1,1594.0,12.9999689]
[1744896041291,0.00940763,1594.2,1594.1,1.25497]
[1744896041593,0.00940763,1594.2,1594.1,2.98417]
[1744896042094,0.00940763,1594.2,1594.1,7.18317]
[1744896043186,0.00940763,1594.2,1594.1,12.18317]
[1744896044095,7.86155699,1594.6,1594.5,1.25466]
[1744896044295,6.23205699,1594.6,1594.5,1.25466]
[1744896044692,7.86155699,1594.6,1594.5,1.25466]
[1744896045589,9.11616699,1594.6,1594.4,8.93427]
[1744896045796,1.6295,1594.5,1594.4,7.6796]
[1744896046197,6.23205699,1594.6,1594.5,1.25466]
[1744896046400,7.91815699,1594.6,1594.5,1.25466]
[1744896048198,7.91815699,1594.6,1594.5,3.01316]
[1744896048495,6.23205699,1594.6,1594.5,3.01316]
[1744896048691,2.65760565,1594.6,1594.5,11.22096]
[1744896048890,6.52911515,1594.7,1594.6,1.25458]
[1744896049094,2.11923515,1594.7,1594.6,1.25458]
[1744896049295,2.11923515,1594.7,1594.6,8.01308]
[1744896049598,10.41259127,1594.8,1594.7,1.2545]
[1744896049789,8.64002127,1594.8,1594.7,10.3303]
[1744896049994,5.51967127,1594.8,1594.7,15.3303]
[1744896050195,3.77122127,1594.8,1594.7,15.3303]
[1744896050399,15.70290953,1595.4,1594.7,19.9318]
[1744896050594,12.49510953,1595.4,1595.3,1.25403]
[1744896050795,14.20820953,1595.4,1595.3,1.25403]
[1744896051293,15.46215953,1595.4,1595.2,2.92304]
[1744896051489,1.7131,1595.3,1595.2,2.92304]
[1744896051690,12.49510953,1595.4,1595.3,1.25403]
[1744896051897,12.49510953,1595.4,1595.3,2.92303]
[1744896052100,12.49510953,1595.4,1595.3,8.06293]
[1744896052492,14.10110953,1595.4,1595.3,8.06293]
[1744896052898,14.10110953,1595.4,1595.3,1.25403]
[1744896053597,12.49510953,1595.4,1595.3,1.25403]
[1744896053799,14.10110953,1595.4,1595.3,2.96683]
[1744896055003,12.49510953,1595.4,1595.3,2.96683]
[1744896055505,0.00620248,1595.5,1595.4,1.25395]
[1744896055804,0.00620248,1595.5,1595.4,2.97295]
[1744896056391,1.64260248,1595.5,1595.4,2.97295]
[1744896057003,1.64260248,1595.5,1595.4,1.25395]
[1744896058791,1.64260248,1595.5,1595.4,2.85295]
[1744896058995,0.00620248,1595.5,1595.4,2.85295]
[1744896059294,0.00620248,1595.5,1595.4,4.70745]
[1744896060605,1.72550248,1595.5,1595.4,4.70745]
[1744896061697,1.72550248,1595.5,1595.4,3.75835]
[1744896062505,1.72550248,1595.5,1595.4,1.25395]
[1744896062704,2.70380248,1595.5,1595.4,1.25395]
[1744896062901,0.00620248,1595.5,1595.4,1.25395]
[1744896063104,0.00620248,1595.5,1595.4,2.97075]
[1744896063304,0.00620248,1595.5,1595.4,3.89415]
[1744896064900,1.71850248,1595.5,1595.4,2.97075]
[1744896065102,1.71850248,1595.5,1595.4,1.25395]
[1744896065402,0.00620248,1595.5,1595.4,4.46175]
[1744896065606,0.00620248,1595.5,1595.4,6.09815]
[1744896067300,1.71850248,1595.5,1595.4,6.09815]
[1744896067505,0.00620248,1595.5,1595.4,6.09815]
[1744896071205,2.48e-06,1595.5,1595.4,11.09815]
[1744896073010,1.9477,1596.0,1595.9,1.25356]
[1744896073206,1.9477,1596.0,1595.9,5.44156]
[1744896074007,3.649,1596.0,1595.9,5.44156]
[1744896075104,3.649,1596.0,1595.9,1.25356]
[1744896075304,1.25356,1595.9,1595.8,3.21720763]
[1744896075514,6.16266,1595.9,1595.8,0.00940763]
[1744896075710,6.16266,1595.9,1595.8,1.26304763]
[1744896075711,11.16266,1595.9,1595.8,1.26304763]
[1744896076010,11.16266,1595.9,1595.8,0.00940763]
[1744896076402,17.15266,1595.9,1595.8,0.00940763]
[1744896076604,3.13449,1595.7,1595.3,5.44199]
[1744896076912,3.2078,1595.4,1595.2,1.25409]
[1744896077101,0.998,1595.3,1595.2,1.25409]
[1744896077308,3.86443,1595.3,1595.1,5.44217]
[1744896077509,7.07223,1595.3,1595.2,1.25411]
[1744896078215,5.8182,1595.3,1595.2,1.25411]
[1744896079214,5.8182,1595.3,1595.0,9.89275763]
[1744896079215,7.07223,1595.3,1595.0,6.75710763]
[1744896079413,7.07223,1595.3,1595.1,1.25419]
[1744896079414,1.6124,1595.2,1595.1,1.25419]
[1744896080209,0.9381,1595.3,1595.2,1.25411]
[1744896080416,0.00940763,1595.4,1595.3,1.25403]
[1744896080609,0.00940763,1595.4,1595.3,8.64983]
[1744896081108,0.00940763,1595.4,1595.3,8.12413]
[1744896081302,1.62870763,1595.4,1595.3,8.12413]
[1744896082311,0.00940763,1595.4,1595.3,8.12413]
[1744896082917,0.00940763,1595.4,1595.3,4.188]
[1744896083117,2.93305763,1595.4,1595.3,4.188]
[1744896083419,1.67910763,1595.4,1595.3,5.44203]
[1744896083718,2.93305763,1595.4,1595.3,5.44203]
[1744896084408,1.67910763,1595.4,1595.3,5.44203]
[1744896084814,2.93305763,1595.4,1595.3,5.44203]
[1744896085204,1.67910763,1595.4,1595.3,1.25403]
[1744896085608,1.67910763,1595.4,1595.3,2.95033]
[1744896087417,0.00940763,1595.4,1595.3,2.95033]
[1744896088417,1.76060763,1595.4,1595.3,2.95033]
[1744896089007,3.01455763,1595.4,1595.3,1.6963]
[1744896089213,3.01455763,1595.4,1595.3,1.25403]
[1744896089709,1.76060763,1595.4,1595.3,1.25403]
[1744896089909,1.76060763,1595.4,1595.3,2.84523]
[1744896093411,3.01455763,1595.4,1595.3,2.84523]
[1744896093616,3.01455763,1595.4,1595.3,1.25403]
[1744896093919,1.25403,1595.3,1595.2,5.42406]
[1744896094115,1.25411,1595.2,1595.1,3.2078]
[1744896094427,2.21601,1595.2,1595.1,1.25419]
[1744896094616,3.85191,1595.2,1595.1,1.25419]
[1744896095124,1.25419,1595.1,1595.0,1.26360763]
[1744896095323,2.91319,1595.1,1595.0,9.51682653]
[1744896095921,2.91319,1595.1,1595.0,8.26262653]
[1744896096119,6.12099,1595.1,1595.0,9.51688653]
[1744896096524,6.12099,1595.1,1595.0,8.26262653]
[1744896097218,1.659,1595.1,1595.0,9.51688653]
[1744896097419,1.659,1595.1,1595.0,11.15858653]
[1744896097614,1.659,1595.1,1595.0,12.12018653]
[1744896097820,0.9619,1595.2,1595.1,1.25419]
[1744896098018,0.9619,1595.2,1595.1,2.89589]
[1744896098430,3.92981,1595.2,1595.1,1.25419]
[1744896098621,2.6757,1595.2,1595.1,1.25419]
[1744896100329,2.6757,1595.2,1595.1,2.93339]
[1744896104527,3.92981,1595.2,1595.1,2.93339]
[1744896104728,2.6757,1595.2,1595.1,2.93339]
[1744896105415,0.9619,1595.2,1595.1,2.93339]
[1744896105622,3.21720763,1595.4,1595.1,1.6792]
[1744896105921,7.97863763,1595.4,1595.2,2.93805]
[1744896106130,1.25403,1595.3,1595.2,2.93805]
[1744896106427,7.97861763,1595.4,1595.3,1.25403]
[1744896106730,1.25403,1595.3,1595.2,2.93807]
[1744896106933,2.89043,1595.3,1595.2,2.93807]
[1744896107131,1.25411,1595.2,1595.1,1.25415]
[1744896107332,2.89051,1595.2,1595.1,1.25415]
[1744896107831,0.00940763,1595.4,1595.3,1.25403]
[1744896108026,0.00940763,1595.4,1595.3,11.26843]
[1744896112037,0.00940763,1595.4,1595.3,16.26843]
[1744896115635,0.00940763,1595.4,1595.3,11.26843]
[1744896118634,0.00940763,1595.4,1595.3,7.09743]
[1744896118840,0.00940763,1595.4,1595.3,11.25043]
[1744896120642,0.00940763,1595.4,1595.3,8.04263]
[1744896120846,0.00940763,1595.4,1595.3,11.25043]
[1744896123452,0.00940763,1595.4,1595.3,16.25043]
[1744896124154,7.63e-06,1595.4,1595.3,16.25043]
[1744896125456,0.9428,1595.9,1595.8,1.25364]
[1744896125657,3.6018,1595.9,1595.8,5.40564]
[1744896127255,8.26192795,1596.3,1596.2,1.25332]
[1744896127447,11.88122795,1596.3,1596.2,1.25332]
[1744896127653,3.6193,1596.3,1596.2,1.25332]
[1744896128453,3.6193,1596.3,1596.1,5.41477763]
[1744896128653,1.7301,1596.2,1596.1,5.41480763]
[1744896129158,1.7301,1596.2,1596.1,1.26280763]
[1744896131059,2.98342,1596.2,1596.1,0.00940763]
[1744896131359,1.7301,1596.2,1596.1,1.26280763]
[1744896132565,12.7201,1596.2,1595.6,15.6130189]
[1744896132753,1.2534,1596.1,1595.9,1.25356]
[1744896132954,0.9618,1596.0,1595.9,1.25356]
[1744896133156,3.18928,1596.0,1595.9,1.25356]
[1744896133463,3.6525,1596.0,1595.9,1.25356]
[1744896137273,0.9618,1596.0,1595.9,5.40556]
[1744896137566,0.9618,1596.0,1595.9,8.02556]
[1744896142756,2.593,1596.0,1595.9,8.02556]
[1744896142965,3.84648,1596.0,1595.9,6.772]
[1744896143160,3.84648,1596.0,1595.9,4.152]
[1744896143360,3.84648,1596.0,1595.9,1.25356]
[1744896144161,2.593,1596.0,1595.9,1.25356]
[1744896145862,2.593,1596.0,1595.9,2.90126]
[1744896146162,0.9618,1596.0,1595.9,2.90126]
[1744896146367,0.9618,1596.0,1595.9,3.82216]
[1744896147667,0.00940763,1596.3,1596.2,1.25332]
[1744896148171,0.00940763,1596.3,1596.2,3.86442]
[1744896148673,0.00940763,1596.3,1596.2,7.07222]
[1744896150567,0.00940763,1596.3,1596.2,12.07222]
[1744896150872,1.897,1596.6,1596.5,1.25309]
[1744896151069,3.513,1596.6,1596.5,1.25309]
[1744896154575,3.513,1596.6,1596.5,2.92089]
[1744896154975,2.5464,1596.6,1596.5,2.92089]
[1744896155168,0.9333,1596.7,1596.6,1.25301]
[1744896155364,8.6163,1596.8,1596.7,1.25293]
[1744896155569,9.5496,1596.8,1596.7,1.25293]
[1744896157274,9.5496,1596.8,1596.7,3.92213]
[1744896158178,9.5496,1596.8,1596.7,1.25293]
[1744896158778,9.5496,1596.8,1596.7,2.99323]
[1744896160177,2.6263,1596.8,1596.7,2.99323]
[1744896160777,0.9838,1596.8,1596.7,2.99323]
[1744896161075,1.7204,1597.0,1596.7,9.01363]
[1744896161278,2.6748,1597.0,1596.9,1.25277]
[1744896161766,2.6748,1597.0,1596.9,3.80317]
[1744896163277,1.0091,1597.2,1597.1,1.25262]
[1744896163482,3.6224,1597.2,1597.0,5.39367]
[1744896163778,4.87501,1597.2,1597.0,5.39367]
[1744896163975,2.86032,1597.1,1597.0,5.39367]
[1744896164177,1.6077,1597.1,1597.0,5.39367]
[1744896164880,6.06812,1597.1,1597.0,4.141]
[1744896165081,6.06812,1597.1,1597.0,1.25269]
[1744896165280,1.25269,1597.0,1596.9,1.25271]
[1744896165578,2.96439,1597.0,1596.9,1.25271]
[1744896165779,1.7117,1597.0,1596.9,1.25271]
[1744896168583,2.96439,1597.0,1596.9,1.25271]
[1744896168981,1.7117,1597.0,1596.9,1.25271]
[1744896169182,2.96439,1597.0,1596.9,1.25271]
[1744896170176,2.96439,1597.0,1596.8,1.25278]
[1744896170483,3.6375,1596.9,1596.8,1.25278]
[1744896170681,4.89027,1596.9,1596.8,1.25278]
[1744896170885,1.25285,1596.8,1596.7,2.64850763]
[1744896171179,6.10695,1596.8,1596.7,0.00940763]
[1744896172583,11.10695,1596.8,1596.7,0.00940763]
[1744896173485,6.10695,1596.8,1596.7,0.00940763]
[1744896180278,6.10695,1596.8,1596.7,1.26233763]
[1744896180582,2.89915,1596.8,1596.7,1.26233763]
[1744896181590,2.89915,1596.8,1596.7,3.79703763]
[1744896181990,1.25276,1597.0,1596.9,1.25273]
[1744896183092,9.2592,1597.3,1596.9,9.7325]
[1744896183294,1.25266,1597.1,1597.0,3.19396]
[1744896183589,1.25266,1597.1,1597.0,4.78576]
[1744896184892,1.25266,1597.1,1597.0,2.5258]
[1744896185390,3.2078,1597.1,1596.7,5.38930763]
[1744896185585,1.25277,1596.9,1596.7,7.97590763]
[1744896185796,1.25277,1596.9,1596.8,1.5918]
[1744896186093,2.94775,1596.8,1596.7,5.13120763]
[1744896186289,2.94775,1596.8,1596.7,6.38413763]
[1744896186593,2.94775,1596.8,1596.7,2.25713763]
[1744896187193,1.6949,1596.8,1596.7,2.25713763]
[1744896187384,2.94775,1596.8,1596.7,1.00420763]
[1744896187991,6.15555,1596.8,1596.7,0.00940763]
[1744896188391,6.15555,1596.8,1596.7,1.26233763]
[1744896188591,1.6949,1596.8,1596.7,1.26233763]
[1744896189295,1.25282,1596.9,1596.8,1.25285]
[1744896189591,2.97672,1596.9,1596.8,2.7455]
[1744896189990,2.97672,1596.9,1596.8,3.99835]
[1744896191491,3.2078,1597.0,1596.9,1.25277]
[1744896191697,3.2078,1597.0,1596.9,2.99397]
[1744896191898,1.25263,1597.1,1597.0,1.25269]
[1744896192100,2.97653,1597.1,1597.0,1.25269]
[1744896193593,1.7239,1597.1,1597.0,1.25269]
[1744896193794,0.9478,1597.2,1597.1,1.25262]
[1744896193992,0.9478,1597.2,1597.1,2.17272]
[1744896194191,7.15283,1597.3,1597.2,1.25254]
[1744896194399,7.15283,1597.3,1597.2,3.00474]
[1744896194595,7.15283,1597.3,1597.2,1.7522]
[1744896194799,3.2078,1597.3,1597.2,3.00474]
[1744896195892,0.9333,1597.4,1597.3,1.25246]
[1744896196195,14.42498795,1597.5,1597.4,1.25238]
[1744896196395,15.46208795,1597.5,1597.4,0.9246]
[1744896196592,12.25428795,1597.5,1597.4,2.17698]
[1744896196796,12.25428795,1597.5,1597.4,2.6313]
[1744896197503,3.99236,1597.5,1597.4,2.6313]
[1744896197698,3.99236,1597.5,1597.4,3.88368]
[1744896198295,5.38348,1597.6,1597.5,1.2523]
[1744896198591,5.38348,1597.6,1597.5,2.959]
[1744896200000,7.13148,1597.6,1597.5,2.959]
[1744896200803,7.13148,1597.6,1597.5,1.7067]
[1744896201000,1.2523,1597.5,1597.4,2.17693]
[1744896201304,1.748,1597.5,1597.4,2.17693]
[1744896201497,3.0003,1597.5,1597.4,2.17693]
[1744896201697,1.748,1597.5,1597.4,2.17693]
[1744896202705,3.0003,1597.5,1597.4,2.17693]
[1744896203206,1.25238,1597.4,1597.3,1.7165]
[1744896203398,3.87638,1597.4,1597.3,1.7165]
[1744896203603,1.25251,1597.3,1597.2,1.25252]
[1744896203900,3.87451,1597.3,1597.2,1.25252]
[1744896204097,3.87451,1597.3,1597.1,4.86945]
[1744896204307,1.6186,1597.2,1597.1,4.86945]
[1744896205003,1.0034,1597.3,1597.2,1.25254]
[1744896205208,1.0034,1597.3,1597.2,3.01084]
[1744896205408,3.99306,1597.3,1597.2,3.01084]
[1744896207222,1.25262,1597.1,1597.0,4.46046]
[1744896207401,1.25262,1597.1,1597.0,5.53266]
[1744896207602,1.25262,1597.1,1597.0,7.29096]
[1744896208011,2.28222,1597.1,1597.0,7.29096]
[1744896208206,2.28222,1597.1,1597.0,4.46046]
[1744896208406,2.28222,1597.1,1597.0,3.2078]
[1744896208603,1.25269,1597.0,1596.9,3.99982]
[1744896208805,4.02779,1597.0,1596.9,3.99982]
[1744896209007,2.7751,1597.0,1596.9,3.99982]
[1744896209909,4.02779,1597.0,1596.9,3.99982]
[1744896210115,2.7751,1597.0,1596.9,3.99982]
[1744896210609,1.7629,1597.0,1596.9,3.99982]
[1744896210813,5.01782,1597.1,1597.0,1.25269]
[1744896211115,5.01782,1597.1,1597.0,2.86329]
[1744896213115,1.25269,1597.0,1596.9,2.3115]
[1744896213315,2.97609,1597.0,1596.9,2.3115]
[1744896215916,2.97609,1597.0,1596.9,4.0236]
[1744896216117,1.7234,1597.0,1596.9,4.0236]
[1744896216622,2.97609,1597.0,1596.9,4.0236]
[1744896217913,1.25277,1596.9,1596.8,4.46059]
[1744896218119,2.89777,1596.9,1596.8,7.21009]
[1744896218309,1.645,1596.9,1596.8,7.21009]
[1744896219317,1.25277,1597.0,1596.9,1.25277]
[1744896219518,2.89777,1597.0,1596.9,2.98917]
[1744896221207,1.645,1597.0,1596.9,2.98917]
[1744896221413,3.29448,1597.1,1597.0,1.25269]
[1744896221718,1.25277,1597.0,1596.9,1.25274]
[1744896221920,2.86187,1597.0,1596.9,1.25274]
[1744896222121,2.86187,1597.0,1596.9,2.95224]
[1744896223222,1.6091,1597.0,1596.9,2.95224]
[1744896223822,3.29447,1597.1,1597.0,1.25269]
[1744896224022,4.91627,1597.1,1597.0,2.94839]